fUST/lending_fUST_20250514
["ID","MTS","AMOUNT","RATE_DAILY","PERIOD"]
[360929916,1747152645550,-488.09,0.00013698,2]
[360929917,1747152645561,-779.96,0.00013698,2]
[360929918,1747152645571,-504.69,0.00013698,2]
[360929919,1747152645581,-624.14,0.00013698,2]
[360929920,1747152645592,-732.46,0.00013698,2]
[360929921,1747152645602,-1075.03,0.00013698,2]
[360929922,1747152645611,-401.33386649,0.00013698,2]
[360929924,1747152645621,-619.24,0.00013698,2]
[360929927,1747152645630,-1632.52,0.00013698,2]
[360929929,1747152645640,-329.84248453,0.00013698,2]
[360929931,1747152645649,-400.0,0.00013698,2]
[360929933,1747152645659,-613.24,0.00013698,2]
[360929935,1747152645669,-400.0,0.00013698,2]
[360929937,1747152645678,-400.0,0.00013698,2]
[360929939,1747152645688,-400.0,0.00013698,2]
[360929941,1747152645700,-561.25,0.00013698,2]
[360929943,1747152645710,-2435.94,0.00013698,2]
[360929945,1747152645719,-400.0,0.00013698,2]
[360929947,1747152645729,-400.0,0.00013698,2]
[360929949,1747152645739,-400.0,0.00013698,2]
[360929951,1747152645748,-2410.86,0.00013698,2]
[360929953,1747152645758,-440.19,0.00013698,2]
[360929955,1747152645768,-518.08059673,0.00013698,2]
[360929957,1747152645778,-999.69,0.00013698,2]
[360929959,1747152645789,-400.0,0.00013698,2]
[360929961,1747152645799,-406.2675029,0.00013698,2]
[360929963,1747152645809,-444.15,0.00013698,2]
[360929965,1747152645819,-400.0,0.00013698,2]
[360929967,1747152645829,-2120.24,0.00013698,2]
[360929969,1747152645839,-400.0,0.00013698,2]
[360929971,1747152645849,-400.0,0.00013698,2]
[360929973,1747152645860,-9014.01,0.00013698,2]
[360929975,1747152645869,-400.53216153,0.00013698,2]
[360929977,1747152645879,-400.0,0.00013698,2]
[360929979,1747152645889,-400.0,0.00013698,2]
[360929981,1747152645899,-2953.7,0.00013698,2]
[360929983,1747152645909,-466.91,0.00013698,2]
[360929985,1747152645919,-4497.63,0.00013698,2]
[360929987,1747152645929,-400.0,0.00013698,2]
[360929989,1747152645938,-400.0,0.00013698,2]
[360929991,1747152645949,-400.0,0.00013698,2]
[360929993,1747152645959,-1092.39,0.00013698,2]
[360929995,1747152645972,-400.0,0.00013698,2]
[360929997,1747152645982,-1507.98,0.00013698,2]
[360929999,1747152645991,-400.0,0.00013698,2]
[360930001,1747152646001,-400.0,0.00013698,2]
[360930003,1747152646011,-400.0,0.00013698,2]
[360930005,1747152646024,-579.78,0.00013698,2]
[360930007,1747152646034,-400.0,0.00013698,2]
[360930008,1747152646043,-400.0,0.00013698,2]
[360930011,1747152646055,-400.0,0.00013698,2]
[360930013,1747152646065,-400.52017501,0.00013698,2]
[360930014,1747152646075,-400.0,0.00013698,2]
[360930016,1747152646085,-1123.16,0.00013698,2]
[360930018,1747152646095,-400.0,0.00013698,2]
[360930020,1747152646104,-400.0,0.00013698,2]
[360930022,1747152646114,-400.0,0.00013698,2]
[360930024,1747152646124,-400.0,0.00013698,2]
[360930026,1747152646133,-3434.9,0.00013698,2]
[360930028,1747152646143,-1154.76,0.00013698,2]
[360930030,1747152646153,-949.72,0.00013698,2]
[360930032,1747152646162,-400.0,0.00013698,2]
[360930034,1747152646172,-400.0,0.00013698,2]
[360930036,1747152646183,-400.0,0.00013698,2]
[360930038,1747152646194,-801.32,0.00013698,2]
[360930040,1747152646206,-3560.45,0.00013698,2]
[360930042,1747152646216,-921.45,0.00013698,2]
[360930044,1747152646226,-2779.69,0.00013698,2]
[360930046,1747152646236,-400.0,0.00013698,2]
[360930048,1747152646246,-527.47,0.00013698,2]
[360930050,1747152646258,-400.0,0.00013698,2]
[360930052,1747152646270,-400.0,0.00013698,2]
[360930054,1747152646281,-400.0,0.00013698,2]
[360930056,1747152646292,-2990.54,0.00013698,2]
[360930059,1747152646303,-1539.54,0.00013698,2]
[360930061,1747152646314,-165.108023,0.00013699,2]
[360930064,1747152646324,-151.0,0.00013699,2]
[360930066,1747152646334,-543.194241,0.00013699,2]
[360930068,1747152646345,-574.11328,0.00013699,2]
[360930070,1747152646357,-257.648028,0.00013699,2]
[360930072,1747152646368,-500.0,0.00013699,2]
[360930074,1747152646378,-500.0,0.00013699,2]
[360930085,1747152646477,-500.0,0.00013699,2]
[360930087,1747152646490,-500.0,0.00013699,2]
[360930089,1747152646501,-500.0,0.00013699,2]
[360930091,1747152646511,-500.0,0.00013699,2]
[360930093,1747152646522,-500.0,0.00013699,2]
[360930095,1747152646532,-500.0,0.00013699,2]
[360930097,1747152646543,-500.0,0.00013699,2]
[360930099,1747152646553,-500.0,0.00013699,2]
[360930101,1747152646563,-500.0,0.00013699,2]
[360930103,1747152646573,-500.0,0.00013699,2]
[360930105,1747152646583,-500.0,0.00013699,2]
[360930107,1747152646593,-500.0,0.00013699,2]
[360930109,1747152646603,-500.0,0.00013699,2]
[360930111,1747152646614,-500.0,0.00013699,2]
[360930113,1747152646624,-500.0,0.00013699,2]
[360930115,1747152646635,-500.0,0.00013699,2]
[360930117,1747152646645,-500.0,0.00013699,2]
[360930119,1747152646655,-500.0,0.00013699,2]
[360930121,1747152646665,-500.0,0.00013699,2]
[360930123,1747152646674,-500.0,0.00013699,2]
[360930125,1747152646684,-500.0,0.00013699,2]
[360930127,1747152646694,-500.0,0.00013699,2]
[360930129,1747152646707,-605.42305686,0.00013699,2]
[360930131,1747152646718,-500.0,0.00013699,2]
[360930133,1747152646727,-500.0,0.00013699,2]
[360930135,1747152646737,-154.9754932,0.000137,2]
[360930137,1747152646746,-151.0,0.000137,2]
[360930139,1747152646756,-153.0,0.000137,2]
[360930141,1747152646766,-151.0,0.00013738,2]
[360930143,1747152646776,-500.0,0.0001378,2]
[360930145,1747152646786,-153.0,0.000138,2]
[360930147,1747152646795,-151.0,0.000138,2]
[360930149,1747152646805,-245.674,0.00013811,2]
[360930151,1747152646815,-250.0,0.00013811,2]
[360930153,1747152646824,-151.163,0.00013811,2]
[360930155,1747152646834,-204.88,0.00013811,2]
[360930157,1747152646843,-239.304,0.00013811,2]
[360930159,1747152646853,-250.0,0.00013811,2]
[360930161,1747152646863,-160.224,0.00013811,2]
[360930163,1747152646872,-257.109,0.00013811,2]
[360930165,1747152646881,-242.0,0.00013811,2]
[360930167,1747152646891,-546.0,0.00013811,2]
[360930169,1747152646900,-706.0,0.00013811,2]
[360930171,1747152646910,-2245.0,0.00013811,2]
[360930173,1747152646919,-422.24190663,0.00013877,2]
[360930175,1747152646929,-314.27581824,0.00013877,2]
[360930177,1747152646939,-160.0,0.00013877,2]
[360930179,1747152646948,-500.000001,0.000139,2]
[360930181,1747152646962,-153.0,0.000139,2]
[360930183,1747152646974,-153.0,0.000139,2]
[360930185,1747152646984,-151.0,0.000139,2]
[360930187,1747152646993,-153.0,0.000139,2]
[360930189,1747152647003,-151.0,0.000139,2]
[360930191,1747152647013,-151.0,0.000139,2]
[360930193,1747152647023,-151.0,0.000139,2]
[360930195,1747152647033,-151.0,0.000139,2]
[360930197,1747152647043,-151.0,0.000139,2]
[360930199,1747152647052,-151.0,0.000139,2]
[360930201,1747152647062,-14431.05613423,0.000139,2]
[360930203,1747152647071,-2352.157401,0.00013902,2]
[360930205,1747152647082,-212.19047112,0.00013963,3]
[360930207,1747152647092,-151.0,0.00013972,2]
[360930209,1747152647101,-151.0,0.00013972,2]
[360930211,1747152647111,-151.0,0.00013972,2]
[360930213,1747152647120,-151.0,0.00013972,2]
[360930215,1747152647130,-151.0,0.00013972,2]
[360930217,1747152647140,-400.0,0.00013972,2]
[360930219,1747152647149,-151.0,0.00013972,2]
[360930221,1747152647159,-151.0,0.00013972,2]
[360930223,1747152647169,-151.0,0.00013972,2]
[360930225,1747152647179,-190.233656,0.00013972,2]
[360930227,1747152647188,-165.108023,0.00013972,2]
[360930229,1747152647198,-165.108023,0.00013972,2]
[360930231,1747152647211,-165.108023,0.00013972,2]
[360930233,1747152647221,-165.108023,0.00013972,2]
[360930235,1747152647230,-165.108023,0.00013972,2]
[360930237,1747152647240,-151.0,0.00013972,2]
[360930239,1747152647250,-151.0,0.00013972,2]
[360930241,1747152647259,-151.0,0.00013972,2]
[360930243,1747152647269,-151.0,0.00013972,2]
[360930245,1747152647279,-240.849742,0.00013972,2]
[360930247,1747152647288,-400.0,0.00013972,2]
[360930249,1747152647298,-399.766597,0.00013972,2]
[360930251,1747152647307,-399.766597,0.00013972,2]
[360930253,1747152647317,-399.766597,0.00013972,2]
[360930255,1747152647327,-399.766597,0.00013972,2]
[360930257,1747152647336,-399.766597,0.00013972,2]
[360930259,1747152647346,-399.766597,0.00013972,2]
[360930261,1747152647356,-399.766597,0.00013972,2]
[360930263,1747152647365,-399.766597,0.00013972,2]
[360930265,1747152647375,-399.766597,0.00013972,2]
[360930267,1747152647384,-399.766597,0.00013972,2]
[360930269,1747152647394,-1302.98,0.00013972,2]
[360930271,1747152647404,-400.0,0.00013972,2]
[360930273,1747152647413,-400.0,0.00013972,2]
[360930275,1747152647422,-400.0,0.00013972,2]
[360930277,1747152647432,-400.0,0.00013972,2]
[360930279,1747152647441,-400.0,0.00013972,2]
[360930280,1747152647450,-274.09333411,0.00013972,2]
[360930320,1747152647840,-125.90666589,0.00013972,2]
[360930322,1747152647850,-400.0,0.00013972,2]
[360930324,1747152647860,-400.0,0.00013972,2]
[360930326,1747152647871,-711.92,0.00013972,2]
[360930328,1747152647880,-151.0,0.00013972,2]
[360930330,1747152647890,-151.0,0.00013972,2]
[360930332,1747152647901,-151.0,0.00013972,2]
[360930334,1747152647911,-400.0,0.00013972,2]
[360930336,1747152647920,-151.0,0.00013972,2]
[360930338,1747152647930,-151.0,0.00013972,2]
[360930340,1747152647939,-400.0,0.00013972,2]
[360930342,1747152647949,-151.0,0.00013972,2]
[360930345,1747152647961,-151.0,0.00013972,2]
[360930346,1747152647972,-151.0,0.00013972,2]
[360930349,1747152647985,-257.734881,0.00013972,2]
[360930350,1747152647995,-400.0,0.00013972,2]
[360930353,1747152648005,-400.0,0.00013972,2]
[360930355,1747152648015,-431.64,0.00013972,2]
[360930356,1747152648024,-400.0,0.00013972,2]
[360930357,1747152648034,-400.0,0.00013972,2]
[360930358,1747152648042,-400.0,0.00013972,2]
[360930359,1747152648053,-400.0,0.00013972,2]
[360930360,1747152648062,-1479.0,0.00013972,2]
[360930361,1747152648074,-400.0,0.00013972,2]
[360930362,1747152648083,-402.8,0.00013972,2]
[360930363,1747152648093,-400.0,0.00013972,2]
[360930364,1747152648103,-400.0,0.00013972,2]
[360930365,1747152648112,-400.0,0.00013972,2]
[360930367,1747152648122,-422.45,0.00013972,2]
[360930369,1747152648132,-653.11,0.00013972,2]
[360930371,1747152648142,-646.94,0.00013972,2]
[360930373,1747152648152,-639.31,0.00013972,2]
[360930375,1747152648162,-798.62,0.00013972,2]
[360930377,1747152648173,-400.0,0.00013972,2]
[360930379,1747152648183,-400.0,0.00013972,2]
[360930381,1747152648194,-400.0,0.00013972,2]
[360930383,1747152648207,-400.0,0.00013972,2]
[360930385,1747152648218,-260.38074304,0.00013972,2]
[360930387,1747152648229,-400.0,0.00013972,2]
[360930389,1747152648239,-400.0,0.00013972,2]
[360930391,1747152648251,-400.0,0.00013972,2]
[360930393,1747152648261,-400.0,0.00013972,2]
[360930395,1747152648272,-400.0,0.00013972,2]
[360930398,1747152648282,-1522.38,0.00013972,2]
[360930399,1747152648292,-400.0,0.00013972,2]
[360930401,1747152648302,-400.0,0.00013972,2]
[360930403,1747152648312,-400.0,0.00013972,2]
[360930405,1747152648322,-400.0,0.00013972,2]
[360930408,1747152648332,-400.0,0.00013972,2]
[360930410,1747152648342,-400.0,0.00013972,2]
[360930412,1747152648352,-561.63,0.00013972,2]
[360930414,1747152648362,-400.0,0.00013972,2]
[360930416,1747152648371,-400.0,0.00013972,2]
[360930418,1747152648382,-504.2,0.00013972,2]
[360930420,1747152648392,-400.0,0.00013972,2]
[360930422,1747152648402,-400.0,0.00013972,2]
[360930424,1747152648412,-400.0,0.00013972,2]
[360930426,1747152648423,-400.0,0.00013972,2]
[360930428,1747152648433,-400.0,0.00013972,2]
[360930430,1747152648443,-400.0,0.00013972,2]
[360930433,1747152648454,-151.0,0.00013972,2]
[360930435,1747152648464,-510.25983312,0.00013972,2]
[360930437,1747152648474,-180.514352,0.00013972,2]
[360930439,1747152648483,-400.0,0.00013972,2]
[360930441,1747152648493,-400.0,0.00013972,2]
[360930443,1747152648503,-400.0,0.00013972,2]
[360930445,1747152648513,-402.41529427,0.00013972,2]
[360930447,1747152648523,-400.0,0.00013972,2]
[360930449,1747152648534,-400.0,0.00013972,2]
[360930451,1747152648543,-434.86,0.00013972,2]
[360930453,1747152648554,-349.39982603,0.00013972,2]
[360930455,1747152648564,-400.0,0.00013972,2]
[360930457,1747152648574,-768.71,0.00013972,2]
[360930459,1747152648584,-420.67,0.00013972,2]
[360930461,1747152648594,-400.0,0.00013972,2]
[360930463,1747152648606,-400.0,0.00013972,2]
[360930465,1747152648616,-151.0,0.00013972,2]
[360930468,1747152648625,-151.0,0.00013972,2]
[360930470,1747152648635,-4046.58,0.00013972,2]
[360930472,1747152648645,-400.0,0.00013972,2]
[360930474,1747152648654,-400.0,0.00013972,2]
[360930476,1747152648664,-226.57092278,0.00013972,2]
[360930478,1747152648674,-525.93,0.00013972,2]
[360930480,1747152648685,-400.0,0.00013972,2]
[360930482,1747152648695,-1199.72,0.00013972,2]
[360930484,1747152648707,-1611.76,0.00013972,2]
[360930486,1747152648717,-1526.53,0.00013972,2]
[360930488,1747152648728,-2038.26,0.00013972,2]
[360930490,1747152648739,-400.0,0.00013972,2]
[360930492,1747152648750,-636.57,0.00013972,2]
[360930494,1747152648761,-400.0,0.00013972,2]
[360930496,1747152648772,-400.0,0.00013972,2]
[360930499,1747152648784,-654.14,0.00013972,2]
[360930501,1747152648797,-400.0,0.00013972,2]
[360930503,1747152648808,-400.0,0.00013972,2]
[360930505,1747152648820,-400.0,0.00013972,2]
[360930507,1747152648832,-400.0,0.00013972,2]
[360930509,1747152648843,-400.0,0.00013972,2]
[360930511,1747152648855,-635.27,0.00013972,2]
[360930513,1747152648865,-400.0,0.00013972,2]
[360930515,1747152648876,-400.0,0.00013972,2]
[360930518,1747152648888,-400.0,0.00013972,2]
[360930520,1747152648899,-405.98,0.00013972,2]
[360930522,1747152648910,-659.62,0.00013972,2]
[360930524,1747152648923,-400.0,0.00013972,2]
[360930526,1747152648935,-1242.13,0.00013972,2]
[360930528,1747152648947,-400.0,0.00013972,2]
[360930530,1747152648965,-400.0,0.00013972,2]
[360930533,1747152648982,-400.0,0.00013972,2]
[360930535,1747152648994,-400.0,0.00013972,2]
[360930537,1747152649006,-400.0,0.00013972,2]
[360930539,1747152649019,-400.0,0.00013972,2]
[360930541,1747152649032,-400.0,0.00013972,2]
[360930543,1747152649045,-400.0,0.00013972,2]
[360930545,1747152649058,-400.0,0.00013972,2]
[360930547,1747152649071,-1389.007936,0.00013972,2]
[360930549,1747152649082,-1389.007936,0.00013972,2]
[360930551,1747152649095,-400.0,0.00013972,2]
[360930553,1747152649107,-400.0,0.00013972,2]
[360930556,1747152649123,-400.0,0.00013972,2]
[360930558,1747152649134,-1389.007936,0.00013972,2]
[360930560,1747152649145,-1389.007936,0.00013972,2]
[360930562,1747152649158,-1389.007936,0.00013972,2]
[360930564,1747152649169,-400.0,0.00013972,2]
[360930566,1747152649182,-1389.007936,0.00013972,2]
[360930568,1747152649193,-1218.15,0.00013972,2]
[360930570,1747152649207,-1389.007936,0.00013972,2]
[360930571,1747152649219,-423.01,0.00013972,2]
[360930572,1747152649232,-400.0,0.00013972,2]
[360930573,1747152649243,-400.0,0.00013972,2]
[360930574,1747152649258,-1024.19,0.00013972,2]
[360930575,1747152649269,-400.0,0.00013972,2]
[360930576,1747152649279,-400.0,0.00013972,2]
[360930577,1747152649290,-410.27,0.00013972,2]
[360930578,1747152649300,-1176.03,0.00013972,2]
[360930579,1747152649311,-622.88,0.00013972,2]
[360930580,1747152649322,-437.77,0.00013972,2]
[360930581,1747152649333,-1003.83,0.00013972,2]
[360930582,1747152649344,-400.0,0.00013972,2]
[360930583,1747152649354,-400.0,0.00013972,2]
[360930584,1747152649365,-400.0,0.00013972,2]
[360930585,1747152649375,-400.0,0.00013972,2]
[360930586,1747152649386,-899.21,0.00013972,2]
[360930587,1747152649397,-400.0,0.00013972,2]
[360930588,1747152649408,-1406.56,0.00013972,2]
[360930589,1747152649418,-699.1,0.00013972,2]
[360930590,1747152649429,-400.0,0.00013972,2]
[360930591,1747152649439,-400.0,0.00013972,2]
[360930592,1747152649451,-400.0,0.00013972,2]
[360930593,1747152649463,-500.0,0.00013972,2]
[360930594,1747152649474,-400.0,0.00013972,2]
[360930595,1747152649484,-422.52,0.00013972,2]
[360930596,1747152649495,-400.0,0.00013972,2]
[360930597,1747152649506,-400.0,0.00013972,2]
[360930598,1747152649517,-466.33,0.00013972,2]
[360930599,1747152649527,-400.0,0.00013972,2]
[360930600,1747152649538,-400.0,0.00013972,2]
[360930601,1747152649549,-151.0,0.00013972,2]
[360930602,1747152649559,-832.38,0.00013972,2]
[360930603,1747152649571,-151.0,0.00013972,2]
[360930604,1747152649582,-151.0,0.00013972,2]
[360930605,1747152649592,-151.0,0.00013972,2]
[360930606,1747152649603,-627.81,0.00013972,2]
[360930607,1747152649614,-1123.08,0.00013972,2]
[360930608,1747152649625,-400.0,0.00013972,2]
[360930609,1747152649636,-400.0,0.00013972,2]
[360930610,1747152649646,-400.0,0.00013972,2]
[360930611,1747152649656,-785.81,0.00013972,2]
[360930612,1747152649668,-400.0,0.00013972,2]
[360930613,1747152649678,-2468.12,0.00013972,2]
[360930614,1747152649688,-783.18,0.00013972,2]
[360930615,1747152649698,-151.0,0.00013972,2]
[360930616,1747152649710,-506.57142246,0.00013972,2]
[360930617,1747152649721,-151.0,0.00013972,2]
[360930618,1747152649732,-476.98,0.00013972,2]
[360930619,1747152649742,-247.00144133,0.00013972,2]
[360930620,1747152649753,-400.0,0.00013972,2]
[360930621,1747152649764,-1888.82,0.00013972,2]
[360930622,1747152649773,-400.0,0.00013972,2]
[360930623,1747152649784,-400.0,0.00013972,2]
[360930624,1747152649794,-429.40900658,0.00013972,2]
[360930625,1747152649805,-1339.5,0.00013972,2]
[360930626,1747152649815,-400.0,0.00013972,2]
[360930627,1747152649826,-400.0,0.00013972,2]
[360930628,1747152649837,-400.0,0.00013972,2]
[360930630,1747152649847,-400.0,0.00013972,2]
[360930632,1747152649858,-400.0,0.00013972,2]
[360930633,1747152649867,-400.0,0.00013972,2]
[360930634,1747152649878,-520.4,0.00013972,2]
[360930635,1747152649889,-400.0,0.00013972,2]
[360930636,1747152649899,-941.96,0.00013972,2]
[360930638,1747152649909,-400.0,0.00013972,2]
[360930639,1747152649920,-400.0,0.00013972,2]
[360930640,1747152649931,-1318.37,0.00013972,2]
[360930641,1747152649942,-400.0,0.00013972,2]
[360930642,1747152649954,-2756.06,0.00013972,2]
[360930643,1747152649965,-400.0,0.00013972,2]
[360930644,1747152649976,-400.0,0.00013972,2]
[360930645,1747152649990,-400.0,0.00013972,2]
[360930646,1747152650000,-3362.16,0.00013972,2]
[360930647,1747152650011,-819.78,0.00013972,2]
[360930648,1747152650024,-1046.78,0.00013972,2]
[360930649,1747152650034,-3761.31,0.00013972,2]
[360930650,1747152650045,-428.19,0.00013972,2]
[360930651,1747152650056,-400.0,0.00013972,2]
[360930652,1747152650067,-888.76,0.00013972,2]
[360930653,1747152650078,-456.66,0.00013972,2]
[360930654,1747152650089,-400.0,0.00013972,2]
[360930655,1747152650098,-400.0,0.00013972,2]
[360930656,1747152650109,-310.15132112,0.00013972,2]
[360930657,1747152650119,-515.08624403,0.00013972,2]
[360930658,1747152650131,-400.0,0.00013972,2]
[360930659,1747152650141,-400.0,0.00013972,2]
[360930660,1747152650152,-2349.37,0.00013972,2]
[360930661,1747152650162,-2083.13,0.00013972,2]
[360930662,1747152650172,-6105.2,0.00013972,2]
[360930663,1747152650183,-400.0,0.00013972,2]
[360930664,1747152650194,-400.0,0.00013972,2]
[360930665,1747152650205,-400.0,0.00013972,2]
[360930666,1747152650216,-522.34,0.00013972,2]
[360930667,1747152650227,-905.07,0.00013972,2]
[360930668,1747152650237,-400.0,0.00013972,2]
[360930669,1747152650248,-5439.67,0.00013972,2]
[360930670,1747152650258,-400.0,0.00013972,2]
[360930671,1747152650269,-670.94,0.00013972,2]
[360930672,1747152650279,-400.0,0.00013972,2]
[360930673,1747152650290,-181.03577,0.00013972,2]
[360930674,1747152650300,-400.0,0.00013972,2]
[360930675,1747152650310,-1147.4,0.00013972,2]
[360930676,1747152650321,-692.1,0.00013972,2]
[360930677,1747152650331,-400.0,0.00013972,2]
[360930678,1747152650342,-754.23,0.00013972,2]
[360930679,1747152650352,-268.02457465,0.00013972,2]
[360930680,1747152650363,-400.0,0.00013972,2]
[360930681,1747152650373,-404.22128179,0.00013972,2]
[360930682,1747152650383,-400.0,0.00013972,2]
[360930683,1747152650392,-400.0,0.00013972,2]
[360930684,1747152650403,-849.38,0.00013972,2]
[360930685,1747152650413,-1452.08,0.00013972,2]
[360930686,1747152650423,-400.0,0.00013972,2]
[360930687,1747152650432,-309.89134578,0.00013972,2]
[360930688,1747152650443,-400.0,0.00013972,2]
[360930689,1747152650453,-400.0,0.00013972,2]
[360930690,1747152650464,-547.87,0.00013972,2]
[360930691,1747152650474,-400.0,0.00013972,2]
[360930692,1747152650484,-403.23966556,0.00013972,2]
[360930693,1747152650494,-400.0,0.00013972,2]
[360930694,1747152650504,-400.0,0.00013972,2]
[360930695,1747152650514,-151.0,0.00013972,2]
[360930696,1747152650523,-255.337918,0.00013972,2]
[360930697,1747152650534,-404.21445751,0.00013972,2]
[360930698,1747152650545,-653.57,0.00013972,2]
[360930699,1747152650555,-400.0,0.00013972,2]
[360930700,1747152650566,-1383.16,0.00013972,2]
[360930701,1747152650575,-400.0,0.00013972,2]
[360930702,1747152650587,-400.0,0.00013972,2]
[360930703,1747152650597,-400.0,0.00013972,2]
[360930704,1747152650607,-400.0,0.00013972,2]
[360930705,1747152650617,-1000.0,0.00013972,2]
[360930706,1747152650627,-1253.7,0.00013972,2]
[360930707,1747152650638,-400.0,0.00013972,2]
[360930708,1747152650648,-400.0,0.00013972,2]
[360930709,1747152650658,-461.09,0.00013972,2]
[360930710,1747152650669,-604.55,0.00013972,2]
[360930711,1747152650679,-400.0,0.00013972,2]
[360930712,1747152650689,-400.0,0.00013972,2]
[360930713,1747152650700,-400.0,0.00013972,2]
[360930714,1747152650712,-819.54,0.00013972,2]
[360930715,1747152650951,-154.0594496,0.00013972,2]
[360930716,1747152650963,-400.0,0.00013972,2]
[360930717,1747152650977,-647.73,0.00013972,2]
[360930718,1747152650987,-584.16,0.00013972,2]
[360930719,1747152650997,-400.0,0.00013972,2]
[360930720,1747152651007,-400.0,0.00013972,2]
[360930721,1747152651018,-400.0,0.00013972,2]
[360930722,1747152651028,-678.09,0.00013972,2]
[360930723,1747152651039,-400.0,0.00013972,2]
[360930724,1747152651049,-400.0,0.00013972,2]
[360930725,1747152651061,-400.0,0.00013972,2]
[360930726,1747152651071,-151.0,0.00013972,2]
[360930727,1747152651081,-151.0,0.00013972,2]
[360930728,1747152651092,-151.0,0.00013972,2]
[360930729,1747152651104,-400.0,0.00013972,2]
[360930730,1747152651115,-576.82,0.00013972,2]
[360930731,1747152651125,-400.0,0.00013972,2]
[360930732,1747152651136,-1819.31,0.00013972,2]
[360930733,1747152651146,-704.44,0.00013972,2]
[360930734,1747152651155,-400.0,0.00013972,2]
[360930735,1747152651165,-854.29,0.00013972,2]
[360930736,1747152651175,-400.0,0.00013972,2]
[360930738,1747152651185,-1025.47,0.00013972,2]
[360930740,1747152651196,-151.0,0.00013972,2]
[360930741,1747152651205,-151.0,0.00013972,2]
[360930742,1747152651216,-404.29,0.00013972,2]
[360930743,1747152651226,-190.135329,0.00013972,2]
[360930744,1747152651235,-400.0,0.00013972,2]
[360930745,1747152651245,-518.75,0.00013972,2]
[360930746,1747152651255,-400.0,0.00013972,2]
[360930747,1747152651266,-400.0,0.00013972,2]
[360930748,1747152651276,-400.0,0.00013972,2]
[360930749,1747152651285,-469.58,0.00013972,2]
[360930750,1747152651295,-510.62878901,0.00013972,2]
[360930751,1747152651305,-687.01,0.00013972,2]
[360930752,1747152651315,-502.74106741,0.00013972,2]
[360930753,1747152651325,-400.0,0.00013972,2]
[360930754,1747152651335,-400.0,0.00013972,2]
[360930755,1747152651345,-2794.55,0.00013972,2]
[360930756,1747152651354,-502.02,0.00013972,2]
[360930757,1747152651364,-400.0,0.00013972,2]
[360930758,1747152651374,-400.0,0.00013972,2]
[360930759,1747152651383,-400.0,0.00013972,2]
[360930760,1747152651393,-400.0,0.00013972,2]
[360930761,1747152651402,-727.72,0.00013972,2]
[360930762,1747152651412,-400.0,0.00013972,2]
[360930763,1747152651421,-355.16922581,0.00013972,2]
[360930764,1747152651431,-400.0,0.00013972,2]
[360930765,1747152651441,-844.22,0.00013972,2]
[360930766,1747152651451,-400.0,0.00013972,2]
[360930767,1747152651464,-400.0,0.00013972,2]